bitfinex/quotes_ETHUSD_20240607
["timestamp","ask_amount","ask_price","bid_price","bid_amount"]
[1717792624659,0.06603398,3684.5,3684.4,2.71412]
[1717792625095,0.65301763,3684.5,3684.4,2.71412]
[1717792625303,0.06603398,3684.5,3684.4,2.71412]
[1717792626862,0.65301823,3684.5,3684.4,2.71412]
[1717792627471,0.06603398,3684.5,3684.4,2.71412]
[1717792628606,0.06603398,3684.5,3684.4,5.348032]
[1717792629102,1.70271894,3685.0,3684.7,2.71392]
[1717792630290,1.70271894,3685.1,3685.0,2.7137]
[1717792630487,3.58698425,3685.3,3685.0,2.7137]
[1717792630667,1.70236885,3685.1,3685.0,2.7137]
[1717792631584,4.70236885,3685.2,3685.0,2.7137]
[1717792631970,3.0,3685.2,3685.0,2.7137]
[1717792632195,1.70233453,3685.2,3685.0,2.7137]
[1717792632601,1.39285466,3685.3,3685.0,2.7137]
[1717792632602,3.09518919,3685.3,3685.0,2.7137]
[1717792632806,1.70233453,3685.2,3685.0,2.7137]
[1717792633119,1.70233453,3685.2,3685.1,0.27137]
[1717792633330,1.70233453,3685.4,3685.2,2.71355]
[1717792634071,0.06643642,3685.3,3685.2,2.71355]
[1717792635186,9.13133467,3685.8,3685.7,2.71318]
[1717792637108,7.43,3685.8,3685.7,2.71318]
[1717792638478,7.43,3685.8,3685.7,3.228668]
[1717792640611,0.0450259,3686.2,3686.1,2.71289]
[1717792645384,0.0450259,3686.2,3686.1,3.26289]
[1717792650344,0.0450259,3686.2,3686.1,8.32718]
[1717792650646,0.0450259,3686.2,3686.1,9.12418]
[1717792650858,0.0450259,3686.2,3686.1,10.036598]
[1717792651553,5.9e-06,3686.2,3686.1,12.749488]
[1717792651869,5.9e-06,3686.2,3686.1,6.888198]
[1717792652360,5.9e-06,3686.2,3686.1,11.952488]
[1717792654233,5.9e-06,3686.2,3686.1,12.749488]
[1717792655247,5.9e-06,3686.2,3686.1,9.239598]
[1717792661660,5.9e-06,3686.2,3686.1,10.036598]
[1717792665641,5.9e-06,3686.2,3686.1,9.239598]
[1717792670252,5.9e-06,3686.2,3686.1,6.888198]
[1717792674553,0.06058533,3686.2,3686.1,6.888198]
[1717792679687,5.9e-06,3686.2,3686.1,6.888198]
[1717792680092,0.06040423,3686.2,3686.1,6.888198]
[1717792680259,5.9e-06,3686.2,3686.1,6.888198]
[1717792680459,0.0605261,3686.2,3686.1,6.888198]
[1717792682560,5.9e-06,3686.2,3686.1,6.888198]
[1717792682765,0.06053246,3686.2,3686.1,6.888198]
[1717792685404,0.06053246,3686.2,3686.1,4.175308]
[1717792685605,3.18313246,3686.2,3686.1,2.71289]
[1717792694418,2.38613246,3686.2,3686.1,2.71289]
[1717792694616,3.18313246,3686.2,3686.1,2.71289]
[1717792695015,2.38613246,3686.2,3686.1,2.71289]
[1717792695320,3.18313246,3686.2,3686.1,2.71289]
[1717792703130,3.18313246,3686.2,3684.3,0.008]
[1717792703131,2.4547,3685.4,3684.3,0.008]
[1717792703288,2.71337,3685.5,3683.6,2.2815]
[1717792703289,1.70116746,3685.0,3683.6,2.2815]
[1717792703483,0.797,3683.9,3683.8,2.71457]
[1717792703728,1.66752516,3683.9,3683.8,2.71457]
[1717792704021,1.7263498,3683.9,3683.8,2.71457]
[1717792705206,1.7263498,3683.9,3683.4,2.71485]
[1717792705414,0.797,3683.5,3683.4,2.71485]
[1717792705728,1.86552114,3683.5,3683.4,2.71485]
[1717792706690,0.85568101,3683.5,3683.4,2.71485]
[1717792706927,0.05868101,3683.5,3683.4,2.71485]
[1717792707135,0.90107576,3683.9,3683.4,2.71485]
[1717792707291,0.797,3683.5,3683.4,2.71485]
[1717792707743,0.85528717,3683.5,3683.4,2.71485]
[1717792707942,0.05828717,3683.5,3683.4,2.71485]
[1717792708095,0.85528717,3683.5,3683.4,2.71485]
[1717792708731,0.05828717,3683.5,3683.4,2.71485]
[1717792708930,0.797,3683.5,3683.4,2.71485]
[1717792709434,0.85496122,3683.5,3683.4,2.71485]
[1717792711448,0.05796122,3683.5,3683.4,2.71485]
[1717792711734,0.797,3683.5,3683.4,2.71485]
[1717792711940,0.85493156,3683.5,3683.4,2.71485]
[1717792716821,0.05793156,3683.5,3683.4,2.986335]
[1717792717033,0.05793156,3683.5,3683.4,3.536335]
[1717792717216,7.43,3684.1,3683.9,2.71448]
[1717792717418,7.43,3684.1,3682.9,2.71521]
[1717792717419,0.797,3684.0,3683.5,2.71476]
[1717792717727,0.05804422,3684.0,3683.5,2.71476]
[1717792718121,0.797,3683.6,3683.5,2.71476]
[1717792718506,0.85502628,3683.6,3683.5,2.71476]
[1717792719131,0.05802628,3683.6,3683.5,2.986236]
[1717792719442,0.05787936,3683.6,3683.5,2.986236]
[1717792719810,0.85487936,3683.6,3683.5,2.986236]
[1717792720011,0.797,3683.6,3683.5,2.986236]
[1717792720229,0.85493685,3683.6,3683.5,2.986236]
[1717792721749,0.05793685,3683.6,3683.5,2.986236]
[1717792722047,0.05793685,3683.6,3683.5,3.536236]
[1717792722248,0.797,3683.7,3683.5,3.536236]
[1717792722466,0.797,3683.7,3683.6,0.3536236]
[1717792723168,7.43,3684.1,3683.7,2.71462]
[1717792723468,7.43,3684.5,3684.1,2.71433]
[1717792723670,0.797,3684.2,3684.1,2.71433]
[1717792723827,0.797,3684.2,3684.1,3.040763]
[1717792724033,0.0583482,3684.2,3684.1,3.040763]
[1717792724348,0.797,3684.4,3684.1,3.040763]
[1717792724553,0.0583482,3684.2,3684.1,3.040763]
[1717792724726,7.38,3684.5,3684.1,3.040763]
[1717792724930,0.05840327,3684.2,3684.1,3.040763]
[1717792725167,0.797,3684.3,3684.1,3.040763]
[1717792725470,0.05797327,3684.2,3684.1,3.040763]
[1717792725832,0.797,3684.3,3684.1,3.040763]
[1717792726211,0.05797327,3684.2,3684.1,3.040763]
[1717792726538,0.797,3684.3,3684.1,3.040763]
[1717792726846,0.05797327,3684.2,3684.1,3.040763]
[1717792727043,0.797,3684.3,3684.1,3.040763]
[1717792727244,0.05797327,3684.2,3684.1,3.040763]
[1717792727540,0.797,3684.3,3684.1,2.71433]
[1717792727743,0.05797327,3684.2,3684.1,2.71433]
[1717792728045,0.797,3684.3,3684.1,2.71433]
[1717792728240,0.0579587,3684.2,3684.1,2.71433]
[1717792728468,0.797,3684.3,3684.1,2.71433]
[1717792728670,0.05793564,3684.2,3684.1,2.71433]
[1717792729170,0.797,3684.3,3684.1,2.71433]
[1717792729347,0.05793564,3684.2,3684.1,2.71433]
[1717792729736,0.797,3684.3,3684.1,2.71433]
[1717792729931,0.05797933,3684.2,3684.1,2.71433]
[1717792730373,0.797,3684.3,3684.1,2.71433]
[1717792730678,0.05797933,3684.2,3684.1,2.71433]
[1717792731144,0.797,3684.3,3684.1,2.71433]
[1717792731347,0.05602837,3684.2,3684.1,2.71433]
[1717792731549,0.797,3684.3,3684.1,2.71433]
[1717792731740,0.05602837,3684.2,3684.1,2.71433]
[1717792731945,0.797,3684.3,3684.1,2.71433]
[1717792732267,0.05602837,3684.2,3684.1,2.71433]
[1717792732473,0.797,3684.3,3684.1,2.71433]
[1717792732677,0.05598468,3684.2,3684.1,2.71433]
[1717792733148,0.797,3684.3,3684.1,2.71433]
[1717792733491,0.05598468,3684.2,3684.1,2.71433]
[1717792733799,0.797,3684.2,3684.1,2.71433]
[1717792733975,0.85290797,3684.2,3684.1,2.71433]
[1717792738503,0.05590797,3684.2,3684.1,2.71433]
[1717792738659,0.797,3684.2,3684.1,2.71433]
[1717792738863,0.85250198,3684.2,3684.1,2.71433]
[1717792741821,0.05550198,3684.2,3684.1,2.985763]
[1717792742336,9.7109,3684.8,3684.4,2.71409]
[1717792742548,0.797,3684.5,3684.4,2.71409]
[1717792742844,2.3309,3684.8,3684.4,2.71409]
[1717792743042,0.797,3684.5,3684.4,2.71409]
[1717792745625,2.3309,3684.8,3684.4,2.71409]
[1717792745939,0.797,3684.5,3684.4,2.71409]
[1717792749968,2.3309,3684.8,3684.4,2.71409]
[1717792750264,0.797,3684.5,3684.4,2.71409]
[1717792754052,0.85265769,3684.5,3684.4,2.71409]
[1717792760587,0.85265769,3684.5,3684.1,2.71435]
[1717792760588,2.2784,3684.4,3684.1,2.71435]
[1717792760893,1.68523085,3684.2,3684.1,2.71435]
[1717792761099,2.53707726,3684.2,3684.1,2.71435]
[1717792761479,2.53707726,3684.2,3683.8,2.71457]
[1717792761681,0.797,3683.9,3683.8,2.71457]
[1717792761914,0.85182301,3683.9,3683.8,2.71457]
[1717792767198,2.24467767,3683.9,3683.5,2.71479]
[1717792767400,0.797,3683.6,3683.5,2.71479]
[1717792767734,0.8516005,3683.6,3683.5,2.71479]
[1717792773322,0.0546005,3683.6,3683.5,2.71479]
[1717792773517,0.8516005,3683.6,3683.5,2.71479]
[1717792773835,0.797,3683.6,3683.5,2.71479]
[1717792774026,0.8516131,3683.6,3683.5,2.71479]
[1717792780174,0.0546131,3683.6,3683.5,2.71479]
[1717792780376,0.797,3683.8,3683.5,2.71479]
[1717792780572,0.0546364,3683.6,3683.5,2.71479]
[1717792780773,0.797,3683.8,3683.5,2.71479]
[1717792780978,0.0546364,3683.6,3683.5,2.71479]
[1717792781339,0.797,3683.8,3683.5,2.71479]
[1717792781539,0.0546364,3683.6,3683.5,2.71479]
[1717792781735,0.797,3683.8,3683.5,2.71479]
[1717792781942,0.0546364,3683.6,3683.5,2.71479]
[1717792782142,0.797,3683.8,3683.5,2.71479]
[1717792782390,0.0546364,3683.6,3683.5,2.71479]
[1717792782551,0.797,3683.6,3683.5,2.71479]
[1717792782752,0.8516364,3683.6,3683.5,2.71479]
[1717792782942,0.0546364,3683.6,3683.5,2.71479]
[1717792783443,0.797,3683.8,3683.5,2.71479]
[1717792783937,2.3267,3683.6,3682.7,0.797]
[1717792784143,0.797,3682.9,3682.8,2.71531]
[1717792784377,3.1237,3682.9,3682.8,2.71531]
[1717792784582,3.17611034,3682.9,3682.8,2.71531]
[1717792785299,3.17611034,3682.9,3682.4,2.71555]
[1717792785444,0.797,3682.6,3682.4,2.71555]
[1717792785650,0.797,3682.6,3681.5,0.42552663]
[1717792785651,0.05221974,3682.5,3681.5,0.42552663]
[1717792785850,0.797,3682.3,3681.6,0.56168566]
[1717792786259,0.05204803,3682.2,3681.6,0.56168566]
[1717792786682,0.797,3682.3,3681.6,0.56168566]
[1717792786882,0.05183199,3682.2,3681.6,0.56168566]
[1717792787175,0.05183199,3682.2,3681.7,0.57450157]
[1717792787506,0.05183199,3682.2,3682.1,2.71584]
[1717792787681,0.797,3682.3,3682.1,2.71584]
[1717792787871,0.05183199,3682.2,3682.1,2.71584]
[1717792788071,0.797,3682.3,3682.1,2.71584]
[1717792788274,0.05175813,3682.2,3682.1,2.71584]
[1717792788474,0.797,3682.3,3682.1,2.71584]
[1717792788694,0.05197851,3682.2,3682.1,2.71584]
[1717792788975,0.797,3682.3,3682.1,2.71584]
[1717792789187,0.0518003,3682.2,3682.1,2.71584]
[1717792789886,0.797,3682.3,3682.1,2.71584]
[1717792790088,0.0518003,3682.2,3682.1,2.71584]
[1717792790288,0.797,3682.3,3682.1,2.71584]
[1717792790484,0.0518003,3682.2,3682.1,2.71584]
[1717792790699,0.797,3682.3,3682.1,2.71584]
[1717792791018,0.0518003,3682.2,3682.1,2.71584]
[1717792791175,0.797,3682.3,3682.1,2.71584]
[1717792791375,0.0518003,3682.2,3682.1,2.71584]
[1717792791803,0.797,3682.3,3682.1,2.71584]
[1717792791988,0.0518003,3682.2,3682.1,2.71584]
[1717792792187,0.797,3682.3,3682.1,2.71584]
[1717792792502,0.0517855,3682.2,3682.1,2.71584]
[1717792792677,0.797,3682.3,3682.1,2.71584]
[1717792792879,0.0517855,3682.2,3682.1,2.71584]
[1717792793078,0.797,3682.3,3682.1,2.71584]
[1717792793310,0.0517855,3682.2,3682.1,2.71584]
[1717792793512,0.797,3682.3,3682.1,2.71584]
[1717792793709,0.0517855,3682.2,3682.1,2.71584]
[1717792793918,0.797,3682.3,3682.1,2.71584]
[1717792794105,0.0517855,3682.2,3682.1,2.71584]
[1717792794290,0.797,3682.3,3682.1,2.71584]
[1717792794494,0.0517855,3682.2,3682.1,2.71584]
[1717792794819,7.38,3682.7,3682.5,2.71554]
[1717792795017,0.797,3682.7,3682.5,2.71554]
[1717792795817,3.0,3683.1,3682.9,2.7152]
[1717792796014,2.3967,3683.2,3682.9,2.7152]
[1717792796015,3.797,3683.2,3682.9,2.7152]
[1717792796173,0.797,3683.0,3682.9,2.7152]
[1717792799035,0.84718269,3683.0,3682.9,2.7152]
[1717792800889,0.84718269,3683.0,3682.0,2.71584]
[1717792800890,2.3355,3682.9,3682.5,2.71548]
[1717792801098,0.797,3682.6,3682.5,2.71548]
[1717792801319,0.84704983,3682.6,3682.5,2.71548]
[1717792803314,2.23990449,3682.6,3682.5,2.71548]
[1717792803642,2.4716,3682.5,3681.9,2.71598]
[1717792803812,0.797,3682.0,3681.9,2.71598]
[1717792804357,0.84706844,3682.0,3681.9,2.71598]
[1717792806059,0.05006844,3682.0,3681.9,2.71598]
[1717792806419,4.39285466,3682.4,3681.9,2.71598]
[1717792806657,0.0500147,3682.0,3681.9,2.71598]
[1717792807150,1.39285466,3682.4,3681.1,2.3047]
[1717792807355,1.39285466,3682.4,3680.8,0.42562213]
[1717792807356,0.04781648,3682.0,3681.4,0.55]
[1717792807592,3.0,3682.9,3682.6,2.71541]
[1717792807953,0.04878591,3682.8,3682.6,2.71541]
[1717792808367,1.39285466,3683.0,3682.6,2.71541]
[1717792808614,0.04844219,3682.7,3682.6,2.71541]
[1717792808760,1.39285466,3683.0,3682.6,2.71541]
[1717792809103,0.04842111,3682.7,3682.6,2.71541]
[1717792809559,1.39285466,3683.0,3682.6,2.71541]
[1717792809761,0.04842111,3682.7,3682.6,2.71541]
[1717792810024,1.39285466,3683.0,3682.6,2.71541]
[1717792810322,0.04842111,3682.7,3682.6,2.71541]
[1717792810510,1.39285466,3683.0,3682.6,2.71541]
[1717792811026,0.04847918,3682.9,3682.6,2.71541]
[1717792811573,4.41320391,3683.2,3682.9,2.71519]
[1717792811760,7.04135505,3683.2,3682.9,2.71519]
[1717792812002,4.39285466,3683.2,3682.9,2.71519]
[1717792812404,1.39285466,3683.2,3682.9,2.71519]
[1717792814075,0.04703101,3683.1,3682.9,2.71519]
[1717792814790,0.04703101,3683.1,3683.0,2.2828]
[1717792814994,0.04703101,3683.1,3683.0,2.8328]
[1717792815194,7.38,3683.7,3683.2,2.71502]
[1717792815504,19.76,3684.1,3684.0,2.71444]
[1717792815701,1.41384701,3684.5,3684.0,2.71444]
[1717792815911,1.41384701,3684.3,3684.0,2.71444]
[1717792816081,2.80670167,3684.3,3684.0,2.71444]
[1717792816279,1.39285466,3684.3,3684.0,2.71444]
[1717792818003,2.80670167,3684.3,3684.0,2.71444]
[1717792818306,1.39285466,3684.3,3684.0,2.71444]
[1717792819095,2.80670167,3684.3,3684.0,2.71444]
[1717792819273,1.39285466,3684.3,3684.0,2.71444]
[1717792820836,1.76628013,3684.3,3684.0,2.71444]
[1717792822315,1.39285466,3684.3,3684.0,2.71444]
[1717792824153,3.0,3684.5,3684.4,2.71414]
[1717792824329,7.38,3684.7,3684.4,2.71414]
[1717792824482,1.39285466,3684.6,3684.4,2.71414]
[1717792824814,1.39285466,3684.6,3683.7,5.06694]
[1717792824815,23.56277601,3685.1,3684.8,2.71381]
[1717792825008,1.39285466,3685.0,3684.8,2.71381]
[1717792826539,4.91241773,3685.0,3684.8,2.71381]
[1717792828894,0.04262774,3684.9,3684.8,2.71381]
[1717792829092,1.4354824,3684.9,3684.8,2.71381]
[1717792829300,4.4354824,3684.9,3684.8,2.71381]
[1717792829795,1.4354824,3684.9,3684.8,2.71381]
[1717792830951,1.4354824,3684.9,3683.9,2.71444]
[1717792830952,1.4354824,3684.9,3684.4,2.71407]
[1717792831096,2.0752729,3684.8,3684.4,2.71407]
[1717792831596,0.07035905,3684.7,3684.4,2.71407]
[1717792831797,1.39285466,3684.6,3684.4,2.71407]
[1717792832033,1.4631792,3684.6,3684.4,2.71407]
[1717792832717,1.4631792,3684.6,3684.0,2.71437]
[1717792832935,1.915,3684.4,3684.0,2.71437]
[1717792833230,1.4629392,3684.3,3684.0,2.71437]
[1717792833829,1.4629392,3684.3,3683.6,2.71466]
[1717792834034,4.4629392,3684.3,3683.6,2.71466]
[1717792834398,5.87316695,3684.3,3683.6,2.71466]
[1717792834736,1.04523267,3684.2,3683.6,2.71466]
[1717792835030,1.46219549,3684.1,3683.6,2.71466]
[1717792835235,4.46219549,3684.1,3683.6,2.71466]
[1717792840923,4.46219549,3684.1,3683.8,2.71451]
[1717792841128,3.0,3684.0,3683.8,2.71451]
[1717792841315,0.06934083,3684.1,3683.8,2.71451]
[1717792841514,0.06864815,3683.9,3683.8,2.71451]
[1717792841741,4.915,3684.4,3683.8,2.71451]
[1717792841929,0.06826482,3683.9,3683.8,2.71451]
[1717792842129,4.39285466,3684.3,3683.8,2.71451]
[1717792842330,0.06595566,3683.9,3683.8,2.71451]
[1717792842527,4.39285466,3684.3,3683.8,2.71451]
[1717792842715,0.06595566,3683.9,3683.8,2.71451]
[1717792842963,4.39285466,3684.3,3683.8,2.71451]
[1717792843126,0.06595566,3683.9,3683.8,2.71451]
[1717792843760,4.39285466,3684.3,3683.8,2.71451]
[1717792843966,0.06595566,3683.9,3683.8,2.71451]
[1717792844154,4.39285466,3684.3,3683.8,2.71451]
[1717792844668,0.06389607,3684.2,3683.8,2.71451]
[1717792844829,1.39285466,3684.2,3683.8,2.71451]
[1717792845023,0.06385727,3684.1,3683.8,2.71451]
[1717792845426,1.39285466,3684.0,3683.8,2.71451]
[1717792845637,1.456671,3684.0,3683.8,2.71451]
[1717792848528,0.06381634,3684.0,3683.8,2.71451]
[1717792848946,1.41338885,3684.3,3683.8,2.71451]
[1717792849226,2.80624351,3684.3,3683.8,2.71451]
[1717792849427,0.06385409,3684.2,3683.8,2.71451]
[1717792849656,3.0,3684.2,3683.8,2.71451]
[1717792849826,0.0638153,3684.1,3683.8,2.71451]
[1717792850747,0.0638153,3684.1,3684.0,2.71444]
[1717792852336,1.47720415,3684.1,3684.0,2.71444]
[1717792852958,0.0638153,3684.1,3684.0,2.71444]
[1717792853869,1.39285466,3684.3,3684.0,2.71444]
[1717792854201,0.06380722,3684.1,3684.0,2.71444]
[1717792854355,1.39285466,3684.3,3684.0,2.71444]
[1717792854534,0.06380722,3684.1,3684.0,2.71444]
[1717792854729,2.80624351,3684.3,3684.0,2.71444]
[1717792854979,0.06380722,3684.1,3684.0,2.71444]
[1717792855145,2.80624351,3684.3,3684.0,2.71444]
[1717792855348,0.06380722,3684.1,3684.0,2.71444]
[1717792855533,1.41338885,3684.3,3684.0,3.214984]
[1717792856179,1.41338885,3684.4,3684.3,2.71421]
[1717792856358,3.0,3684.8,3684.3,2.71421]
[1717792856557,1.39285466,3684.6,3684.3,2.71421]
[1717792856957,4.39285466,3684.6,3684.3,2.71421]
[1717792857146,6.08892128,3684.6,3684.3,2.71421]
[1717792857768,6.0935335,3684.6,3684.3,2.71421]
[1717792859242,1.76464317,3684.5,3683.9,2.291]
[1717792861044,6.54029572,3684.1,3684.0,2.71444]
[1717792861242,6.54029572,3684.1,3683.6,2.71467]
[1717792861576,1.70150115,3683.9,3683.6,2.71467]
[1717792861883,0.06376313,3683.8,3683.6,2.71467]
[1717792862172,0.797,3683.7,3683.6,2.71467]
[1717792862576,0.06372432,3683.7,3683.6,2.71467]
[1717792862882,0.797,3683.8,3683.6,2.71467]
[1717792863243,0.06375034,3683.7,3683.6,2.71467]
[1717792863750,0.797,3683.8,3683.6,2.71467]
[1717792864056,0.06372966,3683.7,3683.6,2.71467]
[1717792864259,3.09415776,3684.0,3683.6,2.71467]
[1717792864474,3.94035421,3684.0,3683.6,2.71467]
[1717792864658,0.0638009,3683.9,3683.6,2.71467]
[1717792866555,1.41720881,3683.8,3683.6,5.03407]
[1717792866971,0.06373543,3683.7,3683.6,5.03407]
[1717792867459,1.41720881,3684.0,3683.9,2.71451]
[1717792867679,1.41721124,3684.0,3683.9,2.71451]
[1717792869292,4.70065349,3684.3,3683.9,2.71451]
[1717792869460,4.70065349,3684.3,3684.2,2.71429]
[1717792870899,3.0,3684.3,3684.2,2.71429]
[1717792871100,1.70065349,3684.4,3684.2,2.71429]
[1717792871399,1.70064925,3684.3,3684.2,2.71429]
[1717792871604,4.70064925,3684.3,3684.2,2.71429]
[1717792874239,4.76468119,3684.3,3684.2,2.71429]
[1717792874519,3.06403194,3684.3,3684.2,2.71429]
[1717792874823,0.06403194,3684.3,3684.2,2.71429]
[1717792878390,0.06403194,3684.3,3684.2,5.17159]
[1717792878595,0.06403194,3684.3,3684.2,5.688749]
[1717792878905,1.48139606,3684.3,3684.2,5.17159]
[1717792879829,1.47923505,3684.3,3684.2,5.17159]
[1717792880534,0.06261415,3684.3,3684.2,5.17159]
[1717792880899,1.7024776,3684.7,3684.6,2.71399]
[1717792881101,1.7024776,3684.8,3684.6,2.71399]
[1717792881297,2.2987,3684.6,3682.7,0.008]
[1717792881501,2.2987,3684.6,3682.6,2.71542]
[1717792881502,1.913,3683.2,3682.6,2.71542]
[1717792881701,2.03720246,3683.1,3682.6,2.71542]
[1717792881946,1.70158313,3682.8,3682.6,2.71542]
[1717792882097,3.09443779,3682.7,3682.2,2.71572]
[1717792882300,1.70158313,3682.5,3682.2,2.71572]
[1717792882532,1.70158313,3682.6,3682.2,2.71572]
[1717792882734,4.70158313,3682.6,3682.2,2.71572]
[1717792882936,1.70158313,3682.5,3682.2,2.71572]
[1717792883323,3.0,3682.6,3682.2,2.71572]
[1717792884644,4.39285466,3682.7,3682.2,2.71572]
[1717792884945,1.39285466,3682.5,3681.2,0.008]
[1717792885150,1.39285466,3682.5,3680.6,2.3074]
[1717792885151,1.913,3682.0,3680.6,2.3074]
[1717792885317,1.39285466,3681.9,3680.6,2.2994]
[1717792885518,1.39285466,3681.9,3680.7,0.23074]
[1717792885727,4.39285466,3681.9,3680.7,0.23074]
[1717792886329,4.39285466,3681.9,3681.2,2.71649]
[1717792886816,5.8043054,3681.9,3681.2,2.71649]
[1717792887446,4.39285466,3681.9,3681.2,2.71649]
[1717792887742,3.0,3681.8,3681.2,2.71649]
[1717792887905,1.39285466,3681.8,3681.2,2.71649]
[1717792889118,0.06116766,3681.7,3681.2,2.71649]
[1717792890064,1.913,3681.6,3681.2,2.71649]
[1717792890422,0.06108997,3681.5,3681.2,2.71649]
[1717792898336,1.39285466,3681.8,3681.2,2.988139]
[1717792898579,0.0582194,3681.4,3681.2,2.988139]
[1717792898755,1.39285466,3681.8,3681.2,2.988139]
[1717792898931,0.05818056,3681.3,3681.2,2.988139]
[1717792899130,1.39285466,3681.8,3681.2,2.988139]
[1717792899352,0.05748953,3681.3,3681.2,2.71649]
[1717792899567,1.39285466,3681.8,3681.2,2.71649]
[1717792899762,0.05748953,3681.3,3681.2,2.71649]
[1717792899971,1.39285466,3681.8,3681.2,2.71649]
[1717792900152,0.05824246,3681.3,3681.2,2.71649]
[1717792900360,1.39285466,3681.8,3681.2,2.71649]
[1717792900872,0.0583978,3681.7,3681.2,2.71649]
[1717792901465,0.0583978,3681.7,3681.2,2.988139]
[1717792903776,0.0583978,3681.7,3681.5,2.71627]
[1717792904187,3.0,3682.1,3681.5,2.71627]
[1717792904351,0.05665837,3681.6,3681.5,2.71627]
[1717792904551,3.0,3682.1,3681.5,2.71627]
[1717792904755,0.05583919,3681.6,3681.5,2.71627]
[1717792904983,3.0,3682.1,3681.5,3.2406419]
[1717792905488,1.96899459,3682.0,3681.5,2.71627]
[1717792906574,0.05599459,3682.0,3681.8,2.71604]
[1717792908583,0.05599459,3682.0,3681.8,5.19584]
[1717792911312,0.05599459,3682.0,3681.8,2.71604]
[1717792912276,3.58733116,3682.5,3681.8,2.71604]
[1717792912475,0.05226845,3681.9,3681.8,2.71604]
[1717792912702,4.98018582,3682.5,3681.8,2.71604]
[1717792912911,0.05226845,3681.9,3681.8,2.71604]
[1717792913075,3.58733116,3682.5,3682.1,2.71578]
[1717792915510,3.58732437,3682.5,3682.1,2.71578]
[1717792917994,0.58732437,3682.5,3682.1,2.71578]
[1717792918187,0.798,3682.2,3682.1,2.71578]
[1717792919181,0.85004189,3682.2,3682.1,2.71578]
[1717792920980,0.05204189,3682.2,3682.1,2.71578]
[1717792921177,0.798,3682.3,3682.1,2.71578]
[1717792921376,0.05197985,3682.2,3682.1,2.71578]
[1717792921624,3.58732437,3682.7,3682.1,2.71578]
[1717792921916,0.798,3682.3,3682.1,2.71578]
[1717792922321,0.05198839,3682.2,3682.1,2.71578]
[1717792922682,0.798,3682.3,3682.1,2.71578]
[1717792922896,0.05199052,3682.2,3682.1,2.71578]
[1717792923307,0.798,3682.3,3682.1,2.71578]
[1717792923507,0.05199052,3682.2,3682.1,2.71578]
[1717792923710,0.798,3682.3,3682.1,2.71578]
[1717792924019,0.05199052,3682.2,3682.1,2.71578]
[1717792924426,0.798,3682.3,3682.1,2.71578]
[1717792924614,0.05199052,3682.2,3682.1,2.71578]
[1717792924990,0.798,3682.3,3682.1,2.71578]
[1717792925327,0.05199052,3682.2,3682.1,2.71578]
[1717792925526,0.05199052,3682.2,3681.5,2.3746]
[1717792925527,0.798,3682.5,3682.3,2.71562]
[1717792926037,0.05206393,3682.4,3682.3,2.71562]
[1717792926388,3.0,3682.7,3682.6,2.71547]
[1717792926589,0.798,3682.8,3682.6,2.71547]
[1717792927017,3.58724794,3682.9,3682.6,2.71547]
[1717792927452,2.00076668,3682.9,3682.6,2.987017]
[1717792927586,8.79351874,3683.0,3682.6,0.271547]
[1717792927782,7.38,3683.0,3682.7,1.348]
[1717792928796,7.38,3683.0,3682.9,2.71525]
[1717792929112,7.38,3683.0,3682.9,3.4202677]
[1717792929832,7.38,3683.0,3682.9,6.1355177]
[1717792930039,7.38,3683.0,3682.9,6.6855177]
[1717792931605,1.41651407,3684.0,3683.7,2.71462]
[1717792931805,4.41651407,3684.1,3683.7,2.71462]
[1717792932122,3.70796169,3684.0,3683.7,2.71462]
[1717792932622,3.0,3683.9,3683.7,2.71462]
[1717792932830,0.70796169,3684.0,3683.7,2.71462]
[1717792934207,0.05224358,3683.9,3683.7,2.71462]
[1717792934523,3.0,3684.2,3683.7,2.71462]
[1717792934718,0.05227303,3683.8,3683.7,2.71462]
[1717792934937,3.79631407,3684.3,3684.1,2.71435]
[1717792934938,1.41651407,3684.3,3684.1,2.71435]
[1717792935246,1.41651407,3684.5,3684.1,2.71435]
[1717792935463,1.39285466,3684.4,3684.1,2.71435]
[1717792936136,3.45640647,3684.5,3684.1,2.71435]
[1717792936335,4.84926113,3684.5,3684.1,2.71435]
[1717792936636,0.91269802,3684.4,3684.1,2.71435]
[1717792937249,4.84926113,3684.5,3684.1,2.71435]
[1717792937250,3.0,3684.5,3684.1,2.71435]
[1717792937701,3.0,3684.9,3684.1,2.71435]
[1717792937901,1.39285466,3684.8,3684.1,2.71435]
[1717792938341,1.39285466,3684.8,3684.4,2.71413]
[1717792938506,0.68884547,3684.7,3684.4,2.71413]
[1717792938699,2.08170013,3684.7,3684.4,2.71413]
[1717792939698,2.08170013,3684.7,3683.4,2.71487]
[1717792939699,1.39285466,3684.6,3684.0,2.71438]
[1717792941918,3.68884547,3684.7,3684.3,2.71421]
[1717792942126,3.0,3684.6,3684.3,2.71421]
[1717792942316,2.08170013,3684.7,3684.3,2.71421]
[1717792944150,0.68884547,3684.7,3684.3,2.71421]
[1717792944311,3.0,3684.9,3684.3,2.71421]
[1717792944511,1.39285466,3684.8,3684.3,2.71421]
[1717792946346,1.39285466,3684.8,3683.1,1.913]
[1717792946347,2.4816,3683.5,3682.7,2.71537]
[1717792946516,1.39285466,3683.4,3682.7,2.71537]
[1717792947215,4.39285466,3683.4,3682.7,2.71537]
[1717792949127,0.04954937,3683.3,3682.7,2.71537]
[1717792954426,0.04954937,3683.3,3683.0,2.71516]
[1717792954860,5.00067948,3683.8,3683.0,2.71516]
[1717792955032,0.04938262,3683.2,3683.0,2.71516]
[1717792955359,2.80632592,3683.8,3683.0,2.71516]
[1717792955360,0.04936086,3683.1,3683.0,2.71516]
[1717792955771,4.41347126,3683.7,3683.0,2.71516]
[1717792955972,0.04936086,3683.1,3683.0,2.71516]